bitfinex/quotes_BTCUSD_20250718
["timestamp","ask_amount","ask_price","bid_price","bid_amount"]
[1752881199441,0.21030578,117910.0,117900.0,0.27899063]
[1752881199957,0.25279945,117910.0,117900.0,0.03726736]
[1752881200352,0.25279945,117910.0,117900.0,0.27899063]
[1752881201239,0.21030578,117910.0,117900.0,0.34691063]
[1752881202802,0.19058276,117910.0,117900.0,0.5250276]
[1752881203020,0.19058276,117910.0,117900.0,0.53350922]
[1752881203520,0.19058276,117910.0,117900.0,0.54199076]
[1752881203709,0.18210186,117910.0,117900.0,0.54199076]
[1752881205012,0.17362089,117910.0,117900.0,0.53350922]
[1752881205161,0.17362089,117910.0,117900.0,0.5250276]
[1752881205575,0.19334391,117910.0,117900.0,0.5250276]
[1752881205800,0.19334391,117910.0,117900.0,0.34691063]
[1752881208922,0.19334391,117910.0,117900.0,0.10518736]
[1752881209136,0.19334391,117910.0,117900.0,0.34691063]
[1752881209555,0.6013637,117910.0,117900.0,0.00049736]
[1752881209808,1.0091237,117910.0,117900.0,0.00049736]
[1752881210008,0.19787013,117880.0,117870.0,0.01831]
[1752881210189,0.19788524,117870.0,117860.0,0.27533327]
[1752881210391,0.19788524,117870.0,117860.0,0.3457312]
[1752881210546,0.19788524,117870.0,117860.0,0.3304312]
[1752881211333,0.20619439,117870.0,117860.0,0.3304312]
[1752881211959,0.20619439,117870.0,117860.0,0.3334312]
[1752881212354,0.20619439,117870.0,117860.0,0.3487312]
[1752881212713,0.20619439,117870.0,117860.0,0.3457312]
[1752881212926,0.20619439,117870.0,117860.0,0.3477312]
[1752881213157,0.20619439,117870.0,117860.0,0.3497312]
[1752881213587,0.24378024,117870.0,117860.0,0.10800793]
[1752881213767,0.24378024,117870.0,117860.0,0.3477312]
[1752881214129,0.24378024,117870.0,117860.0,0.3497312]
[1752881214715,0.24378024,117870.0,117860.0,0.10800793]
[1752881214990,0.24378024,117870.0,117860.0,0.3497312]
[1752881215444,0.20619439,117870.0,117860.0,0.3497312]
[1752881215897,0.20619439,117870.0,117860.0,0.3457312]
[1752881216121,0.21467809,117870.0,117860.0,0.51542405]
[1752881216337,0.20619439,117870.0,117860.0,0.52490869]
[1752881216549,0.19771062,117870.0,117860.0,0.3467312]
[1752881216775,0.19771062,117870.0,117860.0,0.3161312]
[1752881217946,0.23660809,117870.0,117860.0,0.2482912]
[1752881218177,0.23660809,117870.0,117860.0,0.07432793]
[1752881218395,1.00552164,117870.0,117860.0,0.00149793]
[1752881218607,0.76379837,117870.0,117860.0,0.00149793]
[1752881219279,0.76379837,117870.0,117860.0,0.00049793]
[1752881219707,0.76479837,117870.0,117860.0,0.00049793]
[1752881219970,0.7924573,117870.0,117860.0,0.00049793]
[1752881220429,0.7893973,117870.0,117860.0,0.00049793]
[1752881221075,0.76967428,117870.0,117860.0,0.00049793]
[1752881221308,0.7893973,117870.0,117860.0,0.00049793]
[1752881221534,0.76967428,117870.0,117860.0,0.00049793]
[1752881221754,0.7893973,117870.0,117860.0,0.00049793]
[1752881222388,0.7893173,117870.0,117860.0,0.00049793]
[1752881224465,0.7216773,117870.0,117860.0,0.00049793]
[1752881224608,0.7892773,117870.0,117860.0,0.00049793]
[1752881225234,0.17817734,117860.0,117850.0,0.2431343]
[1752881225493,0.19790036,117860.0,117850.0,0.24578382]
[1752881226703,0.19890036,117860.0,117850.0,0.24578382]
[1752881227418,0.02920723,117860.0,117850.0,0.47244628]
[1752881227626,0.001,117860.0,117850.0,0.55795656]
[1752881228050,0.02072302,117860.0,117850.0,0.55795656]
[1752881228628,0.02920701,117860.0,117850.0,0.55795656]
[1752881228829,0.02072302,117860.0,117850.0,0.55795656]
[1752881229041,0.02920708,117860.0,117850.0,0.55795656]
[1752881229469,0.001,117860.0,117850.0,0.55795656]
[1752881229799,0.00948399,117860.0,117850.0,0.55795656]
[1752881230208,0.02072302,117860.0,117850.0,0.55795656]
[1752881230420,0.001,117860.0,117850.0,0.55795656]
[1752881231285,0.02072302,117860.0,117850.0,0.55795656]
[1752881232798,0.02072302,117860.0,117850.0,0.55895656]
[1752881234187,0.02072302,117860.0,117850.0,0.57349741]
[1752881234396,0.00848327,117870.0,117850.0,0.57349741]
[1752881234397,0.0366897,117870.0,117860.0,0.2261459]
[1752881234608,0.0366897,117870.0,117860.0,0.62584945]
[1752881234814,0.04497042,117870.0,117860.0,0.62584945]
[1752881235065,0.0366897,117870.0,117860.0,0.62584945]
[1752881235327,0.04517326,117870.0,117860.0,0.62584945]
[1752881235828,0.02920629,117870.0,117860.0,0.62584945]
[1752881235980,0.0376897,117870.0,117860.0,0.62584945]
[1752881236804,0.02072302,117870.0,117860.0,0.62584945]
[1752881237763,0.02920636,117870.0,117860.0,0.62584945]
[1752881237970,0.03768985,117870.0,117860.0,0.62584945]
[1752881238404,0.01796683,117870.0,117860.0,0.38412618]
[1752881238627,0.05465718,117870.0,117860.0,0.62584945]
[1752881238987,0.05465711,117870.0,117860.0,0.62584945]
[1752881239320,0.06314088,117870.0,117860.0,0.62584945]
[1752881239460,0.05465711,117870.0,117860.0,0.62584945]
[1752881239670,0.05465704,117870.0,117860.0,0.62584945]
[1752881241837,0.04617341,117870.0,117860.0,0.62584945]
[1752881242360,0.02920636,117870.0,117860.0,0.62584945]
[1752881242572,0.02920629,117870.0,117860.0,0.62584945]
[1752881242793,0.00948327,117870.0,117860.0,0.62584945]
[1752881242987,0.02920629,117870.0,117860.0,0.62584945]
[1752881243194,0.00948327,117870.0,117860.0,0.62584945]
[1752881243404,0.001,117870.0,117860.0,0.6403903]
[1752881245002,0.001,117870.0,117860.0,0.6423903]
[1752881245203,0.02072302,117870.0,117860.0,0.6423903]
[1752881246070,0.001,117870.0,117860.0,0.6423903]
[1752881246463,0.04245542,117880.0,117870.0,0.19512934]
[1752881246692,0.02544858,117880.0,117870.0,0.55599289]
[1752881246900,0.03398346,117880.0,117870.0,0.55895289]
[1752881247529,0.06218961,117880.0,117870.0,0.55895289]
[1752881248083,0.06218961,117880.0,117870.0,0.55995289]
[1752881248995,0.06218961,117880.0,117870.0,0.55995304]
[1752881249214,0.05094979,117880.0,117870.0,0.55995304]
[1752881249424,0.07067281,117880.0,117870.0,0.55995304]
[1752881249942,0.23185418,117880.0,117870.0,0.55995304]
[1752881250092,0.23185418,117880.0,117870.0,0.55146948]
[1752881250299,0.22337134,117880.0,117870.0,0.55146948]
[1752881250881,0.20364832,117880.0,117870.0,0.55146948]
[1752881251084,0.22337134,117880.0,117870.0,0.55146948]
[1752881252336,0.21483646,117880.0,117870.0,0.55146948]
[1752881252514,0.19787028,117880.0,117870.0,0.51138585]
[1752881253331,0.19787028,117880.0,117870.0,0.51986962]
[1752881253536,0.19787028,117880.0,117870.0,0.54415332]
[1752881253736,0.19787028,117880.0,117870.0,0.29394635]
[1752881253947,0.19787028,117880.0,117870.0,0.53566962]
[1752881254181,0.19787028,117880.0,117870.0,0.54415332]
[1752881254628,0.19787028,117880.0,117870.0,0.55263695]
[1752881255269,0.20626656,117880.0,117870.0,0.55263695]
[1752881255578,0.20626656,117880.0,117870.0,0.54415332]
[1752881255933,0.20626656,117880.0,117870.0,0.53566962]
[1752881256122,0.20626656,117880.0,117870.0,0.54415332]
[1752881256547,0.20626656,117880.0,117870.0,0.34902355]
[1752881256773,0.20626656,117880.0,117870.0,0.52718585]
[1752881256977,0.20626656,117880.0,117870.0,0.53566962]
[1752881257132,0.20626656,117880.0,117870.0,0.51986962]
[1752881257790,0.20626656,117880.0,117870.0,0.53683695]
[1752881258390,0.18654354,117880.0,117870.0,0.53683695]
[1752881258602,0.20626656,117880.0,117870.0,0.53683695]
[1752881259209,0.21474954,117880.0,117870.0,0.54532051]
[1752881259412,0.19502652,117880.0,117870.0,0.54532051]
[1752881259615,0.21474954,117880.0,117870.0,0.54532051]
[1752881260122,0.21474954,117880.0,117870.0,0.54532015]
[1752881262058,0.21474954,117880.0,117870.0,0.56072015]
[1752881262453,0.02536203,117880.0,117870.0,0.56072015]
[1752881262657,0.03384508,117880.0,117870.0,0.56071979]
[1752881263077,0.07053443,117880.0,117870.0,0.56071979]
[1752881264658,0.05081141,117880.0,117870.0,0.56071979]
[1752881264791,0.07053443,117880.0,117870.0,0.56071979]
[1752881264987,0.07053443,117880.0,117870.0,0.55223638]
[1752881265205,0.23171572,117880.0,117870.0,0.54375289]
[1752881265440,0.05356846,117880.0,117870.0,0.54289374]
[1752881265650,0.05356846,117880.0,117870.0,0.55137723]
[1752881265872,0.05356846,117880.0,117870.0,0.62694064]
[1752881266306,0.06205166,117880.0,117870.0,0.62694064]
[1752881266979,0.04232864,117880.0,117870.0,0.62694064]
[1752881267181,0.06205166,117880.0,117870.0,0.62694064]
[1752881267827,0.06205166,117880.0,117870.0,0.61845723]
[1752881268985,0.05356846,117880.0,117870.0,0.61845723]
[1752881269188,0.05356846,117880.0,117870.0,0.62694064]
[1752881269189,0.04508533,117880.0,117870.0,0.62694064]
[1752881269448,0.04508533,117880.0,117870.0,0.61845723]
[1752881269658,0.04508533,117880.0,117870.0,0.61845715]
[1752881270063,0.05356846,117880.0,117870.0,0.61845715]
[1752881270246,0.05356846,117880.0,117870.0,0.60997374]
[1752881270393,0.05356846,117880.0,117870.0,0.61845723]
[1752881270600,0.04508533,117880.0,117870.0,0.62694064]
[1752881270829,0.06205051,117880.0,117870.0,0.62694064]
[1752881271535,0.07053364,117880.0,117870.0,0.62694064]
[1752881272316,0.06205051,117880.0,117870.0,0.65884064]
[1752881272679,0.06205051,117880.0,117870.0,0.64254064]
[1752881272884,0.06205051,117880.0,117870.0,0.62694064]
[1752881274042,0.07053364,117880.0,117870.0,0.61845723]
[1752881275102,0.07053429,117880.0,117870.0,0.61845723]
[1752881275483,0.06205152,117880.0,117870.0,0.61845723]
[1752881275684,0.03384479,117880.0,117870.0,0.62694064]
[1752881275861,0.06205101,117880.0,117870.0,0.62694064]
[1752881276128,0.05356781,117880.0,117870.0,0.62694064]
[1752881276342,0.03384479,117880.0,117870.0,0.62694064]
[1752881277084,0.03384479,117880.0,117870.0,0.74780247]
[1752881277936,0.04232792,117880.0,117870.0,0.74780247]
[1752881278119,0.06205094,117880.0,117870.0,0.74780247]
[1752881279421,0.07053414,117880.0,117870.0,0.74780247]
[1752881280365,0.05081112,117880.0,117870.0,0.74780247]
[1752881280583,0.07053414,117880.0,117870.0,0.74780247]
[1752881281601,0.23171558,117880.0,117870.0,0.36825047]
[1752881282022,0.23171558,117880.0,117870.0,0.73083557]
[1752881282855,0.23171558,117880.0,117870.0,0.73931906]
[1752881283473,0.22323274,117880.0,117870.0,0.73083557]
[1752881287322,0.21474969,117880.0,117870.0,0.2926872]
[1752881287527,0.21689969,117880.0,117870.0,0.73083593]
[1752881287761,0.23289969,117880.0,117870.0,0.73083593]
[1752881287973,0.21474969,117880.0,117870.0,0.73931949]
[1752881288195,0.19502667,117880.0,117870.0,0.73931949]
[1752881288429,0.21474969,117880.0,117870.0,0.73931949]
[1752881289348,0.19502667,117880.0,117870.0,0.73931949]
[1752881289580,0.21474969,117880.0,117870.0,0.74780298]
[1752881289802,0.21474969,117880.0,117870.0,0.73931949]
[1752881290294,0.21474969,117880.0,117870.0,0.36825083]
[1752881290532,0.21474969,117880.0,117870.0,0.73083593]
[1752881291038,0.19502667,117880.0,117870.0,0.73083593]
[1752881291279,0.21474969,117880.0,117870.0,0.73083593]
[1752881291427,0.21474969,117880.0,117870.0,0.7223523]
[1752881291640,0.21474969,117880.0,117870.0,0.3512835]
[1752881291641,0.20626656,117880.0,117870.0,0.3512835]
[1752881291840,0.19778336,117880.0,117870.0,0.7138686]
[1752881292373,0.19778336,117880.0,117870.0,0.72235245]
[1752881292580,0.19778336,117880.0,117870.0,0.11452505]
[1752881292779,0.19778336,117880.0,117870.0,0.54415015]
[1752881293720,0.19778336,117880.0,117870.0,0.552634]
[1752881293926,0.19778336,117880.0,117870.0,0.73079622]
[1752881294343,0.17806034,117880.0,117870.0,0.73079622]
[1752881294556,0.19778336,117880.0,117870.0,0.73079622]
[1752881295999,0.19778336,117880.0,117870.0,0.72231245]
[1752881296855,0.23283336,117880.0,117870.0,0.16809113]
[1752881297057,0.23604336,117880.0,117870.0,0.34938368]
[1752881297471,0.23604336,117880.0,117870.0,0.06804]
[1752881297683,0.23604336,117880.0,117870.0,0.24933255]
[1752881298149,0.23604336,117880.0,117870.0,0.25069255]
[1752881298374,0.23604336,117880.0,117870.0,0.0694]
[1752881298625,0.23604336,117880.0,117870.0,0.25069255]
[1752881299028,0.23604336,117880.0,117870.0,0.001]
[1752881299234,0.23604336,117880.0,117870.0,0.25065255]
[1752881300832,0.23604336,117880.0,117870.0,0.06936]
[1752881301007,0.23604336,117880.0,117870.0,0.25065255]
[1752881301419,0.23604336,117880.0,117870.0,0.6101074]
[1752881301621,0.23283336,117880.0,117870.0,0.61859117]
[1752881302254,0.23283336,117880.0,117870.0,0.42881485]
[1752881303240,0.19778336,117880.0,117870.0,0.6152274]
[1752881303461,0.19778336,117880.0,117870.0,0.62371117]
[1752881303938,0.20841656,117880.0,117870.0,0.62371117]
[1752881304099,0.05356825,117880.0,117870.0,0.74072934]
[1752881304670,0.03384523,117880.0,117870.0,0.74072934]
[1752881304948,0.05356825,117880.0,117870.0,0.74072934]
[1752881305160,0.0620508,117880.0,117870.0,0.74072934]
[1752881307017,0.0620508,117880.0,117870.0,0.73224593]
[1752881307367,0.0620508,117880.0,117870.0,0.74072949]
[1752881309074,0.04232763,117880.0,117870.0,0.7492129]
[1752881309285,0.06205065,117880.0,117870.0,0.7492129]
[1752881310807,0.0253616,117880.0,117870.0,0.7492129]
[1752881311048,0.03384458,117880.0,117870.0,0.7657129]
[1752881311254,0.04232763,117880.0,117870.0,0.7492129]
[1752881311935,0.06205065,117880.0,117870.0,0.7492129]
[1752881312349,0.04232763,117880.0,117870.0,0.7492129]
[1752881312663,0.03384458,117880.0,117870.0,0.7492129]
[1752881312880,0.0535676,117880.0,117870.0,0.7492129]
[1752881313407,0.06205065,117880.0,117870.0,0.7492129]
[1752881314955,0.05356753,117880.0,117870.0,0.7492129]
[1752881315565,0.06205058,117880.0,117870.0,0.7492129]
[1752881315992,0.05356753,117880.0,117870.0,0.7492129]
[1752881316410,0.06205058,117880.0,117870.0,0.3866278]
[1752881316617,0.06205058,117880.0,117870.0,0.7492129]
[1752881316946,0.07053371,117880.0,117870.0,0.7492129]
[1752881317338,0.06213743,117880.0,117870.0,0.7492129]
[1752881317556,0.0536543,117880.0,117870.0,0.7492129]
[1752881318400,0.06213743,117880.0,117870.0,0.7492129]
[1752881318819,0.0536543,117880.0,117870.0,0.7492129]
[1752881319872,0.04517125,117880.0,117870.0,0.7492129]
[1752881320046,0.0536543,117880.0,117870.0,0.7492129]
[1752881320456,0.04517125,117880.0,117870.0,0.7492129]
[1752881320662,0.0536543,117880.0,117870.0,0.7492129]
[1752881323529,0.0536543,117880.0,117870.0,0.3866278]
[1752881323730,0.0536543,117880.0,117870.0,0.7492129]
[1752881323946,0.06215486,117880.0,117870.0,0.7492129]
[1752881325584,0.04243184,117880.0,117870.0,0.7492129]
[1752881325727,0.06215486,117880.0,117870.0,0.7492129]
[1752881327010,0.05091497,117880.0,117870.0,0.7492129]
[1752881327155,0.07063799,117880.0,117870.0,0.7492129]
[1752881328032,0.06215486,117880.0,117870.0,0.7492129]
[1752881328741,0.06215486,117880.0,117870.0,0.3866278]
[1752881328969,0.06215486,117880.0,117870.0,0.7492129]
[1752881329914,0.07063799,117880.0,117870.0,0.7492129]
[1752881330280,0.2318195,117880.0,117870.0,0.36966083]
[1752881330483,0.23833673,117880.0,117870.0,0.7237623]
[1752881330683,0.23833673,117880.0,117870.0,0.732246]
[1752881331317,0.23833673,117880.0,117870.0,0.74072956]
[1752881332069,0.21861371,117880.0,117870.0,0.74072956]
[1752881332255,0.23833673,117880.0,117870.0,0.74072956]
[1752881332705,0.23401371,117880.0,117870.0,0.732246]
[1752881332926,0.24722382,117880.0,117870.0,0.7237623]
[1752881333138,0.24722382,117880.0,117870.0,0.63843468]
[1752881333350,0.23874077,117880.0,117870.0,0.53017605]
[1752881333564,0.23874077,117880.0,117870.0,0.5386599]
[1752881334245,0.24722368,117880.0,117870.0,0.5386599]
[1752881334453,0.24722368,117880.0,117870.0,0.5416999]
[1752881334662,0.23874077,117880.0,117870.0,0.3635376]
[1752881334874,0.21901775,117880.0,117870.0,0.54483015]
[1752881335073,0.23874077,117880.0,117870.0,0.553314]
[1752881336078,0.21901775,117880.0,117870.0,0.553314]
[1752881336303,0.23874077,117880.0,117870.0,0.72299245]
[1752881337672,0.01698347,117880.0,117870.0,0.73995949]
[1752881337883,0.02546609,117880.0,117870.0,0.73995949]
[1752881339147,0.01698325,117880.0,117870.0,0.73995949]
[1752881340056,0.01972302,117880.0,117870.0,0.73147499]
[1752881340273,0.04516563,117910.0,117900.0,0.16963528]
[1752881340500,0.05569617,117910.0,117900.0,0.608102]
[1752881340707,0.08719617,117910.0,117900.0,0.60810207]
[1752881340922,0.09022617,117910.0,117900.0,0.60810207]
[1752881341122,0.09022617,117910.0,117900.0,0.59962038]
[1752881341123,0.24288577,117910.0,117900.0,0.59962038]
[1752881341342,0.23440495,117910.0,117900.0,0.59962038]
[1752881341544,0.23440495,117910.0,117900.0,0.6001199]
[1752881342778,0.23440495,117910.0,117900.0,0.60860166]
[1752881342988,0.23440495,117910.0,117900.0,0.6001199]
[1752881343199,0.23440495,117910.0,117900.0,0.60860166]
[1752881343414,0.23440495,117910.0,117900.0,0.6001199]
[1752881343765,0.24298847,117910.0,117900.0,0.61708335]
[1752881343963,0.24698847,117910.0,117900.0,0.60860166]
[1752881344226,0.24698847,117910.0,117900.0,0.61708335]
[1752881344428,0.24698847,117910.0,117900.0,0.60860166]
[1752881344627,0.24698847,117910.0,117900.0,0.6001199]
[1752881345521,0.24698847,117910.0,117900.0,0.2375348]
[1752881345728,0.27668106,117910.0,117900.0,0.6001199]
[1752881345897,0.24698847,117910.0,117900.0,0.6001199]
[1752881347101,0.24698847,117910.0,117900.0,0.60860166]
[1752881347738,0.24698847,117910.0,117900.0,0.6001199]
[1752881347888,0.0858484,117910.0,117900.0,0.61708328]
[1752881348109,0.25546929,117910.0,117900.0,0.60860166]
[1752881348436,0.25546929,117910.0,117900.0,0.61708335]
[1752881349278,0.25546929,117910.0,117900.0,0.60860166]
[1752881349454,0.25546929,117910.0,117900.0,0.61708335]
[1752881349647,0.25546929,117910.0,117900.0,0.62556497]
[1752881349851,0.25546929,117910.0,117900.0,0.61708335]
[1752881350031,0.25546929,117910.0,117900.0,0.60860166]
[1752881350452,0.25546929,117910.0,117900.0,0.61708335]
[1752881351248,0.25243929,117910.0,117900.0,0.61708335]
[1752881351641,0.25243929,117910.0,117900.0,0.61061166]
[1752881352043,0.25243929,117910.0,117900.0,0.6021299]
[1752881352252,0.25243929,117910.0,117900.0,0.61061159]
[1752881352414,0.23271627,117910.0,117900.0,0.61061159]
[1752881352819,0.25243929,117910.0,117900.0,0.61061159]
[1752881353278,0.25243929,117910.0,117900.0,0.6021299]
[1752881353487,0.23271627,117910.0,117900.0,0.61061166]
[1752881353708,0.25243929,117910.0,117900.0,0.61061166]
[1752881353932,0.23271627,117910.0,117900.0,0.61909335]
[1752881354049,0.23271627,117910.0,117900.0,0.6021299]
[1752881354268,0.25243929,117910.0,117900.0,0.61061166]
[1752881354719,0.23271627,117910.0,117900.0,0.61061166]
[1752881355051,0.25243929,117910.0,117900.0,0.61061166]
[1752881355258,0.25243929,117910.0,117900.0,0.61909335]
[1752881355471,0.25243929,117910.0,117900.0,0.6021299]
[1752881355622,0.25243929,117910.0,117900.0,0.61365166]
[1752881355824,0.25243929,117910.0,117900.0,0.62213335]
[1752881356025,0.07433736,117910.0,117900.0,0.62213335]
[1752881356243,0.03159495,117910.0,117900.0,0.63909637]
[1752881356445,0.16476691,117910.0,117900.0,0.25106656]
[1752881356651,0.3343878,117910.0,117900.0,0.61061166]
[1752881357133,0.3343878,117910.0,117900.0,0.6021299]
[1752881357341,0.3343878,117910.0,117900.0,0.61061166]
[1752881357556,0.3343878,117910.0,117900.0,0.6021299]
[1752881358281,0.26081983,117910.0,117900.0,0.6021299]
[1752881358495,0.26081983,117910.0,117900.0,0.61061159]
[1752881360125,0.26081983,117910.0,117900.0,0.61061166]
[1752881360776,0.26081983,117910.0,117900.0,0.61909335]
[1752881360983,0.26081983,117910.0,117900.0,0.61061166]
[1752881361412,0.26081983,117910.0,117900.0,0.62757497]
[1752881361413,0.26930087,117910.0,117900.0,0.62757497]
[1752881361620,0.26930087,117910.0,117900.0,0.61909335]
[1752881362298,0.09967998,117910.0,117900.0,0.61061166]
[1752881362464,0.26082026,117910.0,117900.0,0.61061166]
[1752881363225,0.26082026,117910.0,117900.0,0.24802656]
[1752881363439,0.26082026,117910.0,117900.0,0.61061166]
[1752881364281,0.26082026,117910.0,117900.0,0.6021299]
[1752881364469,0.26082026,117910.0,117900.0,0.61061166]
[1752881365512,0.26082026,117910.0,117900.0,0.62225335]
[1752881365750,0.26082026,117910.0,117900.0,0.63073497]
[1752881366200,0.26082026,117910.0,117900.0,0.62225335]
[1752881366407,0.26082026,117910.0,117900.0,0.61377166]
[1752881366611,0.25233944,117910.0,117900.0,0.61377166]
[1752881367387,0.25233944,117910.0,117900.0,0.63073497]
[1752881367588,0.20121642,117910.0,117900.0,0.63921651]
[1752881367795,0.22093944,117910.0,117900.0,0.63921651]
[1752881368256,0.22093944,117910.0,117900.0,0.63073497]
[1752881368642,0.22093944,117910.0,117900.0,0.61061166]
[1752881368891,0.25273944,117910.0,117900.0,0.61061166]
[1752881369090,0.25273944,117910.0,117900.0,0.62225335]
[1752881369293,0.25273944,117910.0,117900.0,0.61377166]
[1752881370910,0.25273944,117910.0,117900.0,0.63073497]
[1752881371133,0.22093944,117910.0,117900.0,0.63073497]
[1752881371382,0.22093944,117910.0,117900.0,0.6052899]
[1752881371601,0.25193944,117910.0,117900.0,0.6052899]
[1752881371735,0.25193944,117910.0,117900.0,0.43249462]
[1752881371945,0.24345847,117910.0,117900.0,0.06990952]
[1752881372150,0.24345847,117910.0,117900.0,0.43249462]
[1752881372626,0.24345847,117910.0,117900.0,0.43225462]
[1752881372901,0.24661847,117910.0,117900.0,0.43225462]
[1752881377945,0.24345847,117910.0,117900.0,0.43225462]
[1752881382341,0.23487495,117910.0,117900.0,0.43225462]
[1752881385729,0.23487495,117910.0,117900.0,0.43541462]
[1752881388082,0.21937495,117910.0,117900.0,0.43541462]
[1752881389432,0.22771142,117910.0,117900.0,0.43541462]
[1752881390198,0.22771142,117910.0,117900.0,0.07282952]
[1752881390408,0.24331142,117910.0,117900.0,0.43541462]
[1752881395184,0.2235884,117910.0,117900.0,0.43541462]
[1752881395409,0.2235884,117910.0,117900.0,0.07282952]
[1752881395627,0.24331142,117910.0,117900.0,0.43541462]
[1752881399595,0.24331142,117910.0,117900.0,0.43225462]
[1752881400007,0.2235884,117910.0,117900.0,0.43225462]
[1752881400210,0.24331142,117910.0,117900.0,0.43225462]
[1752881402849,0.21221142,117910.0,117900.0,0.43531462]
[1752881411516,0.02081701,117910.0,117900.0,0.64609432]
[1752881411743,0.02110426,117910.0,117900.0,0.942538]
[1752881411955,0.00138124,117910.0,117900.0,0.942538]
[1752881412170,0.02110426,117910.0,117900.0,0.942538]
[1752881413051,0.02072302,117910.0,117900.0,0.942538]
[1752881413687,0.01972302,117910.0,117900.0,0.39866035]
[1752881413898,0.01972302,117910.0,117900.0,0.942538]
[1752881414780,0.01972302,117910.0,117900.0,0.943538]
[1752881416110,0.01972302,117910.0,117900.0,0.945538]
[1752881422736,0.02820341,117910.0,117900.0,0.945538]
[1752881422941,0.01972302,117910.0,117900.0,0.945538]
[1752881430915,0.05364308,117920.0,117910.0,0.209604]
[1752881431127,0.05364308,117920.0,117910.0,0.72669938]
[1752881431353,0.0366828,117920.0,117910.0,0.72969938]
[1752881431576,0.04516283,117920.0,117910.0,0.72969938]
[1752881432447,0.04516283,117920.0,117910.0,0.73069938]
[1752881432871,0.04516283,117920.0,117910.0,0.73169938]
[1752881433081,0.05364293,117920.0,117910.0,0.73169938]
[1752881435157,0.04516283,117920.0,117910.0,0.73169938]
[1752881437380,0.0366828,117920.0,117910.0,0.73169938]
[1752881438632,0.0451629,117920.0,117910.0,0.73169938]
[1752881439190,0.0366828,117920.0,117910.0,0.73169938]
[1752881439406,0.02820284,117920.0,117910.0,0.73169938]
[1752881439587,0.02820284,117920.0,117910.0,0.74709938]
[1752881439835,0.02820284,117920.0,117910.0,0.76359938]
[1752881440344,0.02820269,117920.0,117910.0,0.76359938]
[1752881440543,0.02820269,117920.0,117910.0,0.74709938]
[1752881440748,0.05568627,117930.0,117920.0,0.18656665]
[1752881440956,0.07540929,117930.0,117920.0,0.61611175]
[1752881441176,0.07540929,117930.0,117920.0,0.62111175]
[1752881441394,0.07741886,117930.0,117920.0,0.62959164]
[1752881441615,0.04720623,117930.0,117920.0,0.81088412]
[1752881441875,0.05880154,117940.0,117930.0,0.20957092]
[1752881442091,0.02820133,117940.0,117930.0,0.64411602]
[1752881442298,0.02820126,117940.0,117930.0,0.7296263]
[1752881442512,0.05167964,117940.0,117930.0,0.72962637]
[1752881442823,0.06216824,117940.0,117930.0,0.73810547]
[1752881443045,0.06015824,117940.0,117930.0,0.74010547]
[1752881443462,0.06863698,117940.0,117930.0,0.73362644]
[1752881443685,0.06863698,117940.0,117930.0,0.7251472]
[1752881443903,0.06863755,117940.0,117930.0,0.72514735]
[1752881444112,0.08624755,117940.0,117930.0,0.73362674]
[1752881444323,0.08624755,117940.0,117930.0,0.55233419]
[1752881444526,0.08617775,117940.0,117930.0,0.56081343]
[1752881444832,0.06645473,117940.0,117930.0,0.5692926]
[1752881445038,0.08617775,117940.0,117930.0,0.5692926]
[1752881445245,0.08617775,117940.0,117930.0,0.74210598]
[1752881445443,0.09465656,117940.0,117930.0,0.74210598]
[1752881445889,0.07769901,117940.0,117930.0,0.75058508]
[1752881446141,0.08617775,117940.0,117930.0,0.75058508]
[1752881446353,0.08617775,117940.0,117930.0,0.75058515]
[1752881446790,0.07769901,117940.0,117930.0,0.75058472]
[1752881446998,0.08617775,117940.0,117930.0,0.75058472]
[1752881447265,0.08617775,117940.0,117930.0,0.74210562]
[1752881447527,0.07776874,117940.0,117930.0,0.74210562]
[1752881447775,0.07776867,117940.0,117930.0,0.75058472]
[1752881447999,0.05804565,117940.0,117930.0,0.75058472]
[1752881448240,0.08624741,117940.0,117930.0,0.75058472]
[1752881448458,0.05804565,117940.0,117930.0,0.75058472]
[1752881448641,0.07776867,117940.0,117930.0,0.75058472]
[1752881448910,0.07776867,117940.0,117930.0,0.74210562]
[1752881449127,0.07776867,117940.0,117930.0,0.75058472]
[1752881449322,0.07046092,117940.0,117930.0,0.75058472]
[1752881449650,0.06198225,117940.0,117930.0,0.75058472]
[1752881449896,0.07046099,117940.0,117930.0,0.74210562]
[1752881450112,0.04225915,117940.0,117930.0,0.75058472]
[1752881450338,0.01677063,117940.0,117930.0,0.75058472]
[1752881450548,0.00829225,117940.0,117930.0,0.75058472]
[1752881450767,0.01677056,117940.0,117930.0,0.75058472]
[1752881450978,0.0606137,117950.0,117940.0,0.17805656]
[1752881451197,0.07110122,117950.0,117940.0,0.6160404]
[1752881451409,0.09082424,117950.0,117940.0,0.63299767]
[1752881451613,0.08764424,117950.0,117940.0,0.63799767]
[1752881451844,0.08764424,117950.0,117940.0,0.64647619]
[1752881452064,0.08764424,117950.0,117940.0,0.63799767]
[1752881452310,0.09610113,117950.0,117940.0,0.64797571]
[1752881452543,0.09610113,117950.0,117940.0,0.63649719]
[1752881452955,0.08762304,117950.0,117940.0,0.63649719]
[1752881453190,0.09610106,117950.0,117940.0,0.63649719]
[1752881453418,0.09610163,117950.0,117940.0,0.61953992]
[1752881453641,0.09610163,117950.0,117940.0,0.62801859]
[1752881454156,0.08762354,117950.0,117940.0,0.63649711]
[1752881454373,0.07914552,117950.0,117940.0,0.63649711]
[1752881454558,0.08762354,117950.0,117940.0,0.63649719]
[1752881455202,0.07914552,117950.0,117940.0,0.63649719]
[1752881455385,0.07914552,117950.0,117940.0,0.64497571]
[1752881455532,0.08762354,117950.0,117940.0,0.62801859]
[1752881455740,0.08762354,117950.0,117940.0,0.63649719]
[1752881456448,0.07914552,117950.0,117940.0,0.64497571]
[1752881456864,0.08762304,117950.0,117940.0,0.64497528]
[1752881457061,0.09610106,117950.0,117940.0,0.6364969]
[1752881457304,0.09610106,117950.0,117940.0,0.62801838]
[1752881457513,0.08762304,117950.0,117940.0,0.6397069]
[1752881457700,0.09610106,117950.0,117940.0,0.6397069]
[1752881457908,0.09610106,117950.0,117940.0,0.63122838]
[1752881458461,0.09610106,117950.0,117940.0,0.6364969]
[1752881458674,0.09921106,117950.0,117940.0,0.62801838]
[1752881459112,0.09610106,117950.0,117940.0,0.62801838]
[1752881459342,0.09610106,117950.0,117940.0,0.61953978]
[1752881459553,0.09610106,117950.0,117940.0,0.62601838]
[1752881459763,0.08225516,117950.0,117940.0,0.62601838]
[1752881459973,0.08762304,117950.0,117940.0,0.63665683]
[1752881460189,0.07914516,117950.0,117940.0,0.63665683]
[1752881460403,0.07914509,117950.0,117940.0,0.64513521]
[1752881460839,0.08225509,117950.0,117940.0,0.64297521]
[1752881461075,0.07066743,117950.0,117940.0,0.64834521]
[1752881461296,0.07914509,117950.0,117940.0,0.64834521]
[1752881462745,0.07914509,117950.0,117940.0,0.64513521]
[1752881463374,0.07914509,117950.0,117940.0,0.63665683]
[1752881463702,0.08762289,117950.0,117940.0,0.63665683]
[1752881463933,0.01992302,117950.0,117940.0,0.94528889]
[1752881464566,0.01992302,117950.0,117940.0,0.76399634]